{"text_format":"1","workbook":"xlsx","n_sheets":2,"sheets":["ورقة2","ورقة1"],"not_rendered":{"charts":0,"images":0,"macros":1,"external_links":0,"defined_names":1,"comments":0,"pivot_tables":0},"unopened":[],"bounds":{"document_bytes":16777216,"sheet_cells":100000,"rows_first":2000,"rows_last":500,"rows_between":2000,"halvings":0,"cell_chars":16384,"cell_head_chars":4096},"cells_cut":0,"cells_raw":0,"read":"whole","date_system":"1900"}

{"sheet":"ورقة2","index":0,"n_rows":467,"n_cols":17,"rows_kept":467,"cut":false,"hidden":false,"merged":[[370,1,370,2],[371,1,371,3],[379,1,379,2],[380,1,380,3],[388,1,388,2],[389,1,389,3],[326,1,326,3],[334,1,334,2],[335,1,335,3],[343,1,343,2],[344,1,344,3],[352,1,352,2],[353,1,353,3],[361,1,361,2],[362,1,362,3],[289,1,289,2],[290,1,290,3],[298,1,298,2],[299,1,299,3],[307,1,307,2],[308,1,308,3],[316,1,316,2],[317,1,317,3],[325,1,325,2],[245,1,245,3],[253,1,253,2],[254,1,254,3],[262,1,262,2],[263,1,263,3],[271,1,271,2],[272,1,272,3],[280,1,280,2],[281,1,281,3],[208,1,208,2],[209,1,209,3],[217,1,217,2],[218,1,218,3],[226,1,226,2],[227,1,227,3],[235,1,235,2],[236,1,236,3],[244,1,244,2],[164,1,164,3],[172,1,172,2],[173,1,173,3],[181,1,181,2],[182,1,182,3],[190,1,190,2],[191,1,191,3],[199,1,199,2],[200,1,200,3],[127,1,127,2],[128,1,128,3],[136,1,136,2],[137,1,137,3],[145,1,145,2],[146,1,146,3],[154,1,154,2],[155,1,155,3],[163,1,163,2],[83,1,83,3],[91,1,91,2],[92,1,92,3],[100,1,100,2],[101,1,101,3],[109,1,109,2],[110,1,110,3],[118,1,118,2],[119,1,119,3],[397,1,397,2],[398,1,398,3],[406,1,406,2],[407,1,407,3],[415,1,415,2],[29,1,29,3],[1,1,1,2],[10,1,10,2],[19,1,19,2],[28,1,28,2],[2,1,2,3],[11,1,11,3],[20,1,20,3],[37,1,37,2],[38,1,38,3],[46,1,46,2],[47,1,47,3],[55,1,55,2],[56,1,56,3],[64,1,64,2],[65,1,65,3],[73,1,73,2],[74,1,74,3],[82,1,82,2],[461,1,461,3],[442,1,442,2],[443,1,443,3],[451,1,451,2],[452,1,452,3],[460,1,460,2],[416,1,416,3],[424,1,424,2],[425,1,425,3],[433,1,433,2],[434,1,434,3]]}
[null,null,null,null,null,null,null,null,null,null,null,null,"رقم الطالب"]
["الطالب ",{"$f":"IF(M2<=$N$3,INDEX(ورقة1!$M:$M,$N$6+M2-1),\"\")","v":"محمد أسامه عبد العاطى عبد العزيز موسى"},null,null,null,"الصف",{"$f":"$K$2","v":"الرابع 2"},null,null,"اختر الصف","الرابع 2",null,1,"عدد الطلبة  بهذا الفصل"]
[null,"درجات شهر ",null,null,{"$f":"$K$3","v":"أكتوبر"},null,null,null,null,"اختر الشهر","أكتوبر",null,null,{"$f":"COUNTIF(ورقة1!L:L,ورقة2!K2)","v":25}]
[null,"لغة عربية",{"$f":"IF(M2<=$N$3,INDEX(ورقة1!$A:$AW,$N$6+M2-1,$N$9),\"\")","v":30}]
[null,null,null,null,null,null,null,null,null,null,null,null,null,"رقم أول سطر إكسل بالورقة1 به هذا الفصل"]
[null,"رياضيات",{"$f":"IF(M2<=$N$3,INDEX(ورقة1!$A:$AW,$N$6+M2-1,$N$9+1),\"\")","v":30},null,null,null,null,null,null,null,null,null,null,{"$f":"MATCH(K2,ورقة1!L:L,0)","v":43}]
[]
[null,"  لغة إنجليزية ",{"$f":"IF(M2<=$N$3,INDEX(ورقة1!$A:$AW,$N$6+M2-1,$N$9+2),\"\")","v":30},null,null,null,null,null,null,null,null,null,null,"رقم أول عمود بالورقة1 به هذا الشهر"]
[null,null,null,null,null,null,null,null,null,null,null,null,null,{"$f":"MATCH(K3,ورقة1!3:3,0)","v":20}]
[null,null,null,null,null,null,null,null,null,null,null,null,null,null,null,"الرابع 1","سبتمبر"]
["الطالب ",{"$f":"IF(M11<=$N$3,INDEX(ورقة1!$M:$M,$N$6+M11-1),\"\")","v":"محمد السيد البيومى السيد"},null,null,null,"الصف",{"$f":"$K$2","v":"الرابع 2"},null,null,null,null,null,2,"رقم آخر سطر بهذه الورقة يتم طباعته",null,"الرابع 2","أكتوبر"]
[null,"درجات شهر ",null,null,{"$f":"$K$3","v":"أكتوبر"},null,null,null,null,null,null,null,null,{"$f":"MATCH(N3,M:M,0)+8","v":226},null,"الرابع 3","نوفمبر"]
[null,"لغة عربية",{"$f":"IF(M11<=$N$3,INDEX(ورقة1!$A:$AW,$N$6+M11-1,$N$9),\"\")","v":27},null,null,null,null,null,null,null,null,null,null,null,null,"الرابع 4","ديسمبر"]
[null,null,null,null,null,null,null,null,null,null,null,null,null,null,null,"الرابع 5","يناير"]
[null,"رياضيات",{"$f":"IF(M11<=$N$3,INDEX(ورقة1!$A:$AW,$N$6+M11-1,$N$9+1),\"\")","v":27},null,null,null,null,null,null,null,null,null,null,null,null,"الرابع 6","فبراير"]
[null,null,null,null,null,null,null,null,null,null,null,null,null,null,null,"الرابع 7","مارس"]
[null,"  لغة إنجليزية ",{"$f":"IF(M11<=$N$3,INDEX(ورقة1!$A:$AW,$N$6+M11-1,$N$9+2),\"\")","v":21},null,null,null,null,null,null,null,null,null,null,null,null,"الرابع 8","أبريل"]
[null,null,null,null,null,null,null,null,null,null,null,null,null,null,null,null,"مايو"]
[null,null,null,null,null,null,null,null,null,null,null,null,null,null,null,null,"يونيو"]
["الطالب ",{"$f":"IF(M20<=$N$3,INDEX(ورقة1!$M:$M,$N$6+M20-1),\"\")","v":"محمد ايمن ابراهيم امام سليمان"},null,null,null,"الصف",{"$f":"$K$2","v":"الرابع 2"},null,null,null,null,null,3]
[null,"درجات شهر ",null,null,{"$f":"$K$3","v":"أكتوبر"}]
[null,"لغة عربية",{"$f":"IF(M20<=$N$3,INDEX(ورقة1!$A:$AW,$N$6+M20-1,$N$9),\"\")","v":29}]
[]
[null,"رياضيات",{"$f":"IF(M20<=$N$3,INDEX(ورقة1!$A:$AW,$N$6+M20-1,$N$9+1),\"\")","v":30}]
[]
[null,"  لغة إنجليزية ",{"$f":"IF(M20<=$N$3,INDEX(ورقة1!$A:$AW,$N$6+M20-1,$N$9+2),\"\")","v":28}]
[]
[]
["الطالب ",{"$f":"IF(M29<=$N$3,INDEX(ورقة1!$M:$M,$N$6+M29-1),\"\")","v":"محمد طارق محمد السيد أبو الفتوح"},null,null,null,"الصف",{"$f":"$K$2","v":"الرابع 2"},null,null,null,null,null,4]
[null,"درجات شهر ",null,null,{"$f":"$K$3","v":"أكتوبر"}]
[null,"لغة عربية",{"$f":"IF(M29<=$N$3,INDEX(ورقة1!$A:$AW,$N$6+M29-1,$N$9),\"\")","v":28}]
[]
[null,"رياضيات",{"$f":"IF(M29<=$N$3,INDEX(ورقة1!$A:$AW,$N$6+M29-1,$N$9+1),\"\")","v":30}]
[]
[null,"  لغة إنجليزية ",{"$f":"IF(M29<=$N$3,INDEX(ورقة1!$A:$AW,$N$6+M29-1,$N$9+2),\"\")","v":23}]
[]
[null,null,null,null,null,null,null,null,null,null,null,null,null,null,null,null,"يونيو"]
["الطالب ",{"$f":"IF(M38<=$N$3,INDEX(ورقة1!$M:$M,$N$6+M38-1),\"\")","v":"محمد عادل نبيل فهيم"},null,null,null,"الصف",{"$f":"$K$2","v":"الرابع 2"},null,null,null,null,null,5]
[null,"درجات شهر ",null,null,{"$f":"$K$3","v":"أكتوبر"}]
[null,"لغة عربية",{"$f":"IF(M38<=$N$3,INDEX(ورقة1!$A:$AW,$N$6+M38-1,$N$9),\"\")","v":28}]
[]
[null,"رياضيات",{"$f":"IF(M38<=$N$3,INDEX(ورقة1!$A:$AW,$N$6+M38-1,$N$9+1),\"\")","v":30}]
[]
[null,"  لغة إنجليزية ",{"$f":"IF(M38<=$N$3,INDEX(ورقة1!$A:$AW,$N$6+M38-1,$N$9+2),\"\")","v":24}]
[]
[]
["الطالب ",{"$f":"IF(M47<=$N$3,INDEX(ورقة1!$M:$M,$N$6+M47-1),\"\")","v":"محمد عبد المنعم عبد الرازق عبد المنعم محمد"},null,null,null,"الصف",{"$f":"$K$2","v":"الرابع 2"},null,null,null,null,null,6]
[null,"درجات شهر ",null,null,{"$f":"$K$3","v":"أكتوبر"}]
[null,"لغة عربية",{"$f":"IF(M47<=$N$3,INDEX(ورقة1!$A:$AW,$N$6+M47-1,$N$9),\"\")","v":28}]
[]
[null,"رياضيات",{"$f":"IF(M47<=$N$3,INDEX(ورقة1!$A:$AW,$N$6+M47-1,$N$9+1),\"\")","v":28}]
[]
[null,"  لغة إنجليزية ",{"$f":"IF(M47<=$N$3,INDEX(ورقة1!$A:$AW,$N$6+M47-1,$N$9+2),\"\")","v":30}]
[]
[null,null,null,null,null,null,null,null,null,null,null,null,null,null,null,"الرابع1","سبتمبر"]
["الطالب ",{"$f":"IF(M56<=$N$3,INDEX(ورقة1!$M:$M,$N$6+M56-1),\"\")","v":"محمد علي محمد علي حسن"},null,null,null,"الصف",{"$f":"$K$2","v":"الرابع 2"},null,null,null,null,null,7,null,null,"الرابع2","أكتوبر"]
[null,"درجات شهر ",null,null,{"$f":"$K$3","v":"أكتوبر"},null,null,null,null,null,null,null,null,null,null,"الرابع3","نوفمبر"]
[null,"لغة عربية",{"$f":"IF(M56<=$N$3,INDEX(ورقة1!$A:$AW,$N$6+M56-1,$N$9),\"\")","v":29},null,null,null,null,null,null,null,null,null,null,null,null,"الرابع4","ديسمبر"]
[null,null,null,null,null,null,null,null,null,null,null,null,null,null,null,"الرابع5","يناير"]
[null,"رياضيات",{"$f":"IF(M56<=$N$3,INDEX(ورقة1!$A:$AW,$N$6+M56-1,$N$9+1),\"\")","v":30},null,null,null,null,null,null,null,null,null,null,null,null,"الرابع6","فبراير"]
[null,null,null,null,null,null,null,null,null,null,null,null,null,null,null,"الرابع7","مارس"]
[null,"  لغة إنجليزية ",{"$f":"IF(M56<=$N$3,INDEX(ورقة1!$A:$AW,$N$6+M56-1,$N$9+2),\"\")","v":28},null,null,null,null,null,null,null,null,null,null,null,null,"الرابع8","أبريل"]
[null,null,null,null,null,null,null,null,null,null,null,null,null,null,null,null,"مايو"]
[null,null,null,null,null,null,null,null,null,null,null,null,null,null,null,null,"يونيو"]
["الطالب ",{"$f":"IF(M65<=$N$3,INDEX(ورقة1!$M:$M,$N$6+M65-1),\"\")","v":"محمد عماد رمضان محمد عبد الحميد"},null,null,null,"الصف",{"$f":"$K$2","v":"الرابع 2"},null,null,null,null,null,8]
[null,"درجات شهر ",null,null,{"$f":"$K$3","v":"أكتوبر"}]
[null,"لغة عربية",{"$f":"IF(M65<=$N$3,INDEX(ورقة1!$A:$AW,$N$6+M65-1,$N$9),\"\")","v":29}]
[]
[null,"رياضيات",{"$f":"IF(M65<=$N$3,INDEX(ورقة1!$A:$AW,$N$6+M65-1,$N$9+1),\"\")","v":30}]
[]
[null,"  لغة إنجليزية ",{"$f":"IF(M65<=$N$3,INDEX(ورقة1!$A:$AW,$N$6+M65-1,$N$9+2),\"\")","v":27}]
[]
[]
["الطالب ",{"$f":"IF(M74<=$N$3,INDEX(ورقة1!$M:$M,$N$6+M74-1),\"\")","v":"محمد نبيل عبد العزيز بكر"},null,null,null,"الصف",{"$f":"$K$2","v":"الرابع 2"},null,null,null,null,null,9]
[null,"درجات شهر ",null,null,{"$f":"$K$3","v":"أكتوبر"}]
[null,"لغة عربية",{"$f":"IF(M74<=$N$3,INDEX(ورقة1!$A:$AW,$N$6+M74-1,$N$9),\"\")","v":29}]
[]
[null,"رياضيات",{"$f":"IF(M74<=$N$3,INDEX(ورقة1!$A:$AW,$N$6+M74-1,$N$9+1),\"\")","v":30}]
[]
[null,"  لغة إنجليزية ",{"$f":"IF(M74<=$N$3,INDEX(ورقة1!$A:$AW,$N$6+M74-1,$N$9+2),\"\")","v":22}]
[]
[null,null,null,null,null,null,null,null,null,null,null,null,null,null,null,null,"يونيو"]
["الطالب ",{"$f":"IF(M83<=$N$3,INDEX(ورقة1!$M:$M,$N$6+M83-1),\"\")","v":"محمود أحمد ابراهيم متولى السيد"},null,null,null,"الصف",{"$f":"$K$2","v":"الرابع 2"},null,null,null,null,null,10]
[null,"درجات شهر ",null,null,{"$f":"$K$3","v":"أكتوبر"}]
[null,"لغة عربية",{"$f":"IF(M83<=$N$3,INDEX(ورقة1!$A:$AW,$N$6+M83-1,$N$9),\"\")","v":28}]
[]
[null,"رياضيات",{"$f":"IF(M83<=$N$3,INDEX(ورقة1!$A:$AW,$N$6+M83-1,$N$9+1),\"\")","v":26}]
[]
[null,"  لغة إنجليزية ",{"$f":"IF(M83<=$N$3,INDEX(ورقة1!$A:$AW,$N$6+M83-1,$N$9+2),\"\")","v":30}]
[]
[]
["الطالب ",{"$f":"IF(M92<=$N$3,INDEX(ورقة1!$M:$M,$N$6+M92-1),\"\")","v":"محمود أحمد محروس السيد يكر"},null,null,null,"الصف",{"$f":"$K$2","v":"الرابع 2"},null,null,null,null,null,11]
[null,"درجات شهر ",null,null,{"$f":"$K$3","v":"أكتوبر"}]
[null,"لغة عربية",{"$f":"IF(M92<=$N$3,INDEX(ورقة1!$A:$AW,$N$6+M92-1,$N$9),\"\")","v":29}]
[]
[null,"رياضيات",{"$f":"IF(M92<=$N$3,INDEX(ورقة1!$A:$AW,$N$6+M92-1,$N$9+1),\"\")","v":30}]
[]
[null,"  لغة إنجليزية ",{"$f":"IF(M92<=$N$3,INDEX(ورقة1!$A:$AW,$N$6+M92-1,$N$9+2),\"\")","v":30}]
[]
[null,null,null,null,null,null,null,null,null,null,null,null,null,null,null,"الرابع1","سبتمبر"]
["الطالب ",{"$f":"IF(M101<=$N$3,INDEX(ورقة1!$M:$M,$N$6+M101-1),\"\")","v":"محمود زايد عبد المنعم زايد"},null,null,null,"الصف",{"$f":"$K$2","v":"الرابع 2"},null,null,null,null,null,12,null,null,"الرابع2","أكتوبر"]
[null,"درجات شهر ",null,null,{"$f":"$K$3","v":"أكتوبر"},null,null,null,null,null,null,null,null,null,null,"الرابع3","نوفمبر"]
[null,"لغة عربية",{"$f":"IF(M101<=$N$3,INDEX(ورقة1!$A:$AW,$N$6+M101-1,$N$9),\"\")","v":28},null,null,null,null,null,null,null,null,null,null,null,null,"الرابع4","ديسمبر"]
[null,null,null,null,null,null,null,null,null,null,null,null,null,null,null,"الرابع5","يناير"]
[null,"رياضيات",{"$f":"IF(M101<=$N$3,INDEX(ورقة1!$A:$AW,$N$6+M101-1,$N$9+1),\"\")","v":27},null,null,null,null,null,null,null,null,null,null,null,null,"الرابع6","فبراير"]
[null,null,null,null,null,null,null,null,null,null,null,null,null,null,null,"الرابع7","مارس"]
[null,"  لغة إنجليزية ",{"$f":"IF(M101<=$N$3,INDEX(ورقة1!$A:$AW,$N$6+M101-1,$N$9+2),\"\")","v":16},null,null,null,null,null,null,null,null,null,null,null,null,"الرابع8","أبريل"]
[null,null,null,null,null,null,null,null,null,null,null,null,null,null,null,null,"مايو"]
[null,null,null,null,null,null,null,null,null,null,null,null,null,null,null,null,"يونيو"]
["الطالب ",{"$f":"IF(M110<=$N$3,INDEX(ورقة1!$M:$M,$N$6+M110-1),\"\")","v":"محمود شوقي الحسيني عثمان"},null,null,null,"الصف",{"$f":"$K$2","v":"الرابع 2"},null,null,null,null,null,13]
[null,"درجات شهر ",null,null,{"$f":"$K$3","v":"أكتوبر"}]
[null,"لغة عربية",{"$f":"IF(M110<=$N$3,INDEX(ورقة1!$A:$AW,$N$6+M110-1,$N$9),\"\")","v":28}]
[]
[null,"رياضيات",{"$f":"IF(M110<=$N$3,INDEX(ورقة1!$A:$AW,$N$6+M110-1,$N$9+1),\"\")","v":28}]
[]
[null,"  لغة إنجليزية ",{"$f":"IF(M110<=$N$3,INDEX(ورقة1!$A:$AW,$N$6+M110-1,$N$9+2),\"\")","v":26}]
[]
[]
["الطالب ",{"$f":"IF(M119<=$N$3,INDEX(ورقة1!$M:$M,$N$6+M119-1),\"\")","v":"محمود عادل رزق عبد الهادى عطيه"},null,null,null,"الصف",{"$f":"$K$2","v":"الرابع 2"},null,null,null,null,null,14]
[null,"درجات شهر ",null,null,{"$f":"$K$3","v":"أكتوبر"}]
[null,"لغة عربية",{"$f":"IF(M119<=$N$3,INDEX(ورقة1!$A:$AW,$N$6+M119-1,$N$9),\"\")","v":30}]
[]
[null,"رياضيات",{"$f":"IF(M119<=$N$3,INDEX(ورقة1!$A:$AW,$N$6+M119-1,$N$9+1),\"\")","v":30}]
[]
[null,"  لغة إنجليزية ",{"$f":"IF(M119<=$N$3,INDEX(ورقة1!$A:$AW,$N$6+M119-1,$N$9+2),\"\")","v":29}]
[]
[null,null,null,null,null,null,null,null,null,null,null,null,null,null,null,null,"يونيو"]
["الطالب ",{"$f":"IF(M128<=$N$3,INDEX(ورقة1!$M:$M,$N$6+M128-1),\"\")","v":"محمود فوزى محمود سعيد سيد احمد"},null,null,null,"الصف",{"$f":"$K$2","v":"الرابع 2"},null,null,null,null,null,15]
[null,"درجات شهر ",null,null,{"$f":"$K$3","v":"أكتوبر"}]
[null,"لغة عربية",{"$f":"IF(M128<=$N$3,INDEX(ورقة1!$A:$AW,$N$6+M128-1,$N$9),\"\")","v":29}]
[]
[null,"رياضيات",{"$f":"IF(M128<=$N$3,INDEX(ورقة1!$A:$AW,$N$6+M128-1,$N$9+1),\"\")","v":30}]
[]
[null,"  لغة إنجليزية ",{"$f":"IF(M128<=$N$3,INDEX(ورقة1!$A:$AW,$N$6+M128-1,$N$9+2),\"\")","v":29}]
[]
[]
["الطالب ",{"$f":"IF(M137<=$N$3,INDEX(ورقة1!$M:$M,$N$6+M137-1),\"\")","v":"محمود وائل محمود حماد"},null,null,null,"الصف",{"$f":"$K$2","v":"الرابع 2"},null,null,null,null,null,16]
[null,"درجات شهر ",null,null,{"$f":"$K$3","v":"أكتوبر"}]
[null,"لغة عربية",{"$f":"IF(M137<=$N$3,INDEX(ورقة1!$A:$AW,$N$6+M137-1,$N$9),\"\")","v":29}]
[]
[null,"رياضيات",{"$f":"IF(M137<=$N$3,INDEX(ورقة1!$A:$AW,$N$6+M137-1,$N$9+1),\"\")","v":30}]
[]
[null,"  لغة إنجليزية ",{"$f":"IF(M137<=$N$3,INDEX(ورقة1!$A:$AW,$N$6+M137-1,$N$9+2),\"\")","v":29}]
[]
[null,null,null,null,null,null,null,null,null,null,null,null,null,null,null,"الرابع1","سبتمبر"]
["الطالب ",{"$f":"IF(M146<=$N$3,INDEX(ورقة1!$M:$M,$N$6+M146-1),\"\")","v":"مروان محمود على الليثى"},null,null,null,"الصف",{"$f":"$K$2","v":"الرابع 2"},null,null,null,null,null,17,null,null,"الرابع2","أكتوبر"]
[null,"درجات شهر ",null,null,{"$f":"$K$3","v":"أكتوبر"},null,null,null,null,null,null,null,null,null,null,"الرابع3","نوفمبر"]
[null,"لغة عربية",{"$f":"IF(M146<=$N$3,INDEX(ورقة1!$A:$AW,$N$6+M146-1,$N$9),\"\")","v":29},null,null,null,null,null,null,null,null,null,null,null,null,"الرابع4","ديسمبر"]
[null,null,null,null,null,null,null,null,null,null,null,null,null,null,null,"الرابع5","يناير"]
[null,"رياضيات",{"$f":"IF(M146<=$N$3,INDEX(ورقة1!$A:$AW,$N$6+M146-1,$N$9+1),\"\")","v":29},null,null,null,null,null,null,null,null,null,null,null,null,"الرابع6","فبراير"]
[null,null,null,null,null,null,null,null,null,null,null,null,null,null,null,"الرابع7","مارس"]
[null,"  لغة إنجليزية ",{"$f":"IF(M146<=$N$3,INDEX(ورقة1!$A:$AW,$N$6+M146-1,$N$9+2),\"\")","v":29},null,null,null,null,null,null,null,null,null,null,null,null,"الرابع8","أبريل"]
[null,null,null,null,null,null,null,null,null,null,null,null,null,null,null,null,"مايو"]
[null,null,null,null,null,null,null,null,null,null,null,null,null,null,null,null,"يونيو"]
["الطالب ",{"$f":"IF(M155<=$N$3,INDEX(ورقة1!$M:$M,$N$6+M155-1),\"\")","v":"يوسف احمد فايز عبدالمولى فرج"},null,null,null,"الصف",{"$f":"$K$2","v":"الرابع 2"},null,null,null,null,null,18]
[null,"درجات شهر ",null,null,{"$f":"$K$3","v":"أكتوبر"}]
[null,"لغة عربية",{"$f":"IF(M155<=$N$3,INDEX(ورقة1!$A:$AW,$N$6+M155-1,$N$9),\"\")","v":29}]
[]
[null,"رياضيات",{"$f":"IF(M155<=$N$3,INDEX(ورقة1!$A:$AW,$N$6+M155-1,$N$9+1),\"\")","v":30}]
[]
[null,"  لغة إنجليزية ",{"$f":"IF(M155<=$N$3,INDEX(ورقة1!$A:$AW,$N$6+M155-1,$N$9+2),\"\")","v":28}]
[]
[]
["الطالب ",{"$f":"IF(M164<=$N$3,INDEX(ورقة1!$M:$M,$N$6+M164-1),\"\")","v":"يوسف الخضرى محمد الخضرى العليمى"},null,null,null,"الصف",{"$f":"$K$2","v":"الرابع 2"},null,null,null,null,null,19]
[null,"درجات شهر ",null,null,{"$f":"$K$3","v":"أكتوبر"}]
[null,"لغة عربية",{"$f":"IF(M164<=$N$3,INDEX(ورقة1!$A:$AW,$N$6+M164-1,$N$9),\"\")","v":30}]
[]
[null,"رياضيات",{"$f":"IF(M164<=$N$3,INDEX(ورقة1!$A:$AW,$N$6+M164-1,$N$9+1),\"\")","v":30}]
[]
[null,"  لغة إنجليزية ",{"$f":"IF(M164<=$N$3,INDEX(ورقة1!$A:$AW,$N$6+M164-1,$N$9+2),\"\")","v":30}]
[]
[null,null,null,null,null,null,null,null,null,null,null,null,null,null,null,null,"يونيو"]
["الطالب ",{"$f":"IF(M173<=$N$3,INDEX(ورقة1!$M:$M,$N$6+M173-1),\"\")","v":"يوسف أمير عبدالرازق يوسف عبد الله"},null,null,null,"الصف",{"$f":"$K$2","v":"الرابع 2"},null,null,null,null,null,20]
[null,"درجات شهر ",null,null,{"$f":"$K$3","v":"أكتوبر"}]
[null,"لغة عربية",{"$f":"IF(M173<=$N$3,INDEX(ورقة1!$A:$AW,$N$6+M173-1,$N$9),\"\")","v":29}]
[]
[null,"رياضيات",{"$f":"IF(M173<=$N$3,INDEX(ورقة1!$A:$AW,$N$6+M173-1,$N$9+1),\"\")","v":29}]
[]
[null,"  لغة إنجليزية ",{"$f":"IF(M173<=$N$3,INDEX(ورقة1!$A:$AW,$N$6+M173-1,$N$9+2),\"\")","v":22}]
[]
[]
["الطالب ",{"$f":"IF(M182<=$N$3,INDEX(ورقة1!$M:$M,$N$6+M182-1),\"\")","v":"يوسف محمد عبد الراضى حسنين أحمد"},null,null,null,"الصف",{"$f":"$K$2","v":"الرابع 2"},null,null,null,null,null,21]
[null,"درجات شهر ",null,null,{"$f":"$K$3","v":"أكتوبر"}]
[null,"لغة عربية",{"$f":"IF(M182<=$N$3,INDEX(ورقة1!$A:$AW,$N$6+M182-1,$N$9),\"\")","v":28}]
[]
[null,"رياضيات",{"$f":"IF(M182<=$N$3,INDEX(ورقة1!$A:$AW,$N$6+M182-1,$N$9+1),\"\")","v":29}]
[]
[null,"  لغة إنجليزية ",{"$f":"IF(M182<=$N$3,INDEX(ورقة1!$A:$AW,$N$6+M182-1,$N$9+2),\"\")","v":21}]
[]
[null,null,null,null,null,null,null,null,null,null,null,null,null,null,null,"الرابع1","سبتمبر"]
["الطالب ",{"$f":"IF(M191<=$N$3,INDEX(ورقة1!$M:$M,$N$6+M191-1),\"\")","v":"أمنية عبد الحفيظ عبد الرازق مصطفى"},null,null,null,"الصف",{"$f":"$K$2","v":"الرابع 2"},null,null,null,null,null,22,null,null,"الرابع2","أكتوبر"]
[null,"درجات شهر ",null,null,{"$f":"$K$3","v":"أكتوبر"},null,null,null,null,null,null,null,null,null,null,"الرابع3","نوفمبر"]
[null,"لغة عربية",{"$f":"IF(M191<=$N$3,INDEX(ورقة1!$A:$AW,$N$6+M191-1,$N$9),\"\")","v":30},null,null,null,null,null,null,null,null,null,null,null,null,"الرابع4","ديسمبر"]
[null,null,null,null,null,null,null,null,null,null,null,null,null,null,null,"الرابع5","يناير"]
[null,"رياضيات",{"$f":"IF(M191<=$N$3,INDEX(ورقة1!$A:$AW,$N$6+M191-1,$N$9+1),\"\")","v":30},null,null,null,null,null,null,null,null,null,null,null,null,"الرابع6","فبراير"]
[null,null,null,null,null,null,null,null,null,null,null,null,null,null,null,"الرابع7","مارس"]
[null,"  لغة إنجليزية ",{"$f":"IF(M191<=$N$3,INDEX(ورقة1!$A:$AW,$N$6+M191-1,$N$9+2),\"\")","v":30},null,null,null,null,null,null,null,null,null,null,null,null,"الرابع8","أبريل"]
[null,null,null,null,null,null,null,null,null,null,null,null,null,null,null,null,"مايو"]
[null,null,null,null,null,null,null,null,null,null,null,null,null,null,null,null,"يونيو"]
["الطالب ",{"$f":"IF(M200<=$N$3,INDEX(ورقة1!$M:$M,$N$6+M200-1),\"\")","v":"أمنية عبد المنعم عبد المنعم زايد"},null,null,null,"الصف",{"$f":"$K$2","v":"الرابع 2"},null,null,null,null,null,23]
[null,"درجات شهر ",null,null,{"$f":"$K$3","v":"أكتوبر"}]
[null,"لغة عربية",{"$f":"IF(M200<=$N$3,INDEX(ورقة1!$A:$AW,$N$6+M200-1,$N$9),\"\")","v":30}]
[]
[null,"رياضيات",{"$f":"IF(M200<=$N$3,INDEX(ورقة1!$A:$AW,$N$6+M200-1,$N$9+1),\"\")","v":30}]
[]
[null,"  لغة إنجليزية ",{"$f":"IF(M200<=$N$3,INDEX(ورقة1!$A:$AW,$N$6+M200-1,$N$9+2),\"\")","v":30}]
[]
[]
["الطالب ",{"$f":"IF(M209<=$N$3,INDEX(ورقة1!$M:$M,$N$6+M209-1),\"\")","v":"انجى ايهاب يحيي عبدالحى على"},null,null,null,"الصف",{"$f":"$K$2","v":"الرابع 2"},null,null,null,null,null,24]
[null,"درجات شهر ",null,null,{"$f":"$K$3","v":"أكتوبر"}]
[null,"لغة عربية",{"$f":"IF(M209<=$N$3,INDEX(ورقة1!$A:$AW,$N$6+M209-1,$N$9),\"\")","v":29}]
[]
[null,"رياضيات",{"$f":"IF(M209<=$N$3,INDEX(ورقة1!$A:$AW,$N$6+M209-1,$N$9+1),\"\")","v":30}]
[]
[null,"  لغة إنجليزية ",{"$f":"IF(M209<=$N$3,INDEX(ورقة1!$A:$AW,$N$6+M209-1,$N$9+2),\"\")","v":29}]
[]
[null,null,null,null,null,null,null,null,null,null,null,null,null,null,null,null,"يونيو"]
["الطالب ",{"$f":"IF(M218<=$N$3,INDEX(ورقة1!$M:$M,$N$6+M218-1),\"\")","v":"أية ربيع عبد الحفيظ حسن علي"},null,null,null,"الصف",{"$f":"$K$2","v":"الرابع 2"},null,null,null,null,null,25]
[null,"درجات شهر ",null,null,{"$f":"$K$3","v":"أكتوبر"}]
[null,"لغة عربية",{"$f":"IF(M218<=$N$3,INDEX(ورقة1!$A:$AW,$N$6+M218-1,$N$9),\"\")","v":28}]
[]
[null,"رياضيات",{"$f":"IF(M218<=$N$3,INDEX(ورقة1!$A:$AW,$N$6+M218-1,$N$9+1),\"\")","v":30}]
[]
[null,"  لغة إنجليزية ",{"$f":"IF(M218<=$N$3,INDEX(ورقة1!$A:$AW,$N$6+M218-1,$N$9+2),\"\")","v":28}]
[]
[]
["الطالب ",{"$f":"IF(M227<=$N$3,INDEX(ورقة1!$M:$M,$N$6+M227-1),\"\")","v":""},null,null,null,"الصف",{"$f":"$K$2","v":"الرابع 2"},null,null,null,null,null,26]
[null,"درجات شهر ",null,null,{"$f":"$K$3","v":"أكتوبر"}]
[null,"لغة عربية",{"$f":"IF(M227<=$N$3,INDEX(ورقة1!$A:$AW,$N$6+M227-1,$N$9),\"\")","v":""}]
[]
[null,"رياضيات",{"$f":"IF(M227<=$N$3,INDEX(ورقة1!$A:$AW,$N$6+M227-1,$N$9+1),\"\")","v":""}]
[]
[null,"  لغة إنجليزية ",{"$f":"IF(M227<=$N$3,INDEX(ورقة1!$A:$AW,$N$6+M227-1,$N$9+2),\"\")","v":""}]
[]
[null,null,null,null,null,null,null,null,null,null,null,null,null,null,null,"الرابع1","سبتمبر"]
["الطالب ",{"$f":"IF(M236<=$N$3,INDEX(ورقة1!$M:$M,$N$6+M236-1),\"\")","v":""},null,null,null,"الصف",{"$f":"$K$2","v":"الرابع 2"},null,null,null,null,null,27,null,null,"الرابع2","أكتوبر"]
[null,"درجات شهر ",null,null,{"$f":"$K$3","v":"أكتوبر"},null,null,null,null,null,null,null,null,null,null,"الرابع3","نوفمبر"]
[null,"لغة عربية",{"$f":"IF(M236<=$N$3,INDEX(ورقة1!$A:$AW,$N$6+M236-1,$N$9),\"\")","v":""},null,null,null,null,null,null,null,null,null,null,null,null,"الرابع4","ديسمبر"]
[null,null,null,null,null,null,null,null,null,null,null,null,null,null,null,"الرابع5","يناير"]
[null,"رياضيات",{"$f":"IF(M236<=$N$3,INDEX(ورقة1!$A:$AW,$N$6+M236-1,$N$9+1),\"\")","v":""},null,null,null,null,null,null,null,null,null,null,null,null,"الرابع6","فبراير"]
[null,null,null,null,null,null,null,null,null,null,null,null,null,null,null,"الرابع7","مارس"]
[null,"  لغة إنجليزية ",{"$f":"IF(M236<=$N$3,INDEX(ورقة1!$A:$AW,$N$6+M236-1,$N$9+2),\"\")","v":""},null,null,null,null,null,null,null,null,null,null,null,null,"الرابع8","أبريل"]
[null,null,null,null,null,null,null,null,null,null,null,null,null,null,null,null,"مايو"]
[null,null,null,null,null,null,null,null,null,null,null,null,null,null,null,null,"يونيو"]
["الطالب ",{"$f":"IF(M245<=$N$3,INDEX(ورقة1!$M:$M,$N$6+M245-1),\"\")","v":""},null,null,null,"الصف",{"$f":"$K$2","v":"الرابع 2"},null,null,null,null,null,28]
[null,"درجات شهر ",null,null,{"$f":"$K$3","v":"أكتوبر"}]
[null,"لغة عربية",{"$f":"IF(M245<=$N$3,INDEX(ورقة1!$A:$AW,$N$6+M245-1,$N$9),\"\")","v":""}]
[]
[null,"رياضيات",{"$f":"IF(M245<=$N$3,INDEX(ورقة1!$A:$AW,$N$6+M245-1,$N$9+1),\"\")","v":""}]
[]
[null,"  لغة إنجليزية ",{"$f":"IF(M245<=$N$3,INDEX(ورقة1!$A:$AW,$N$6+M245-1,$N$9+2),\"\")","v":""}]
[]
[]
["الطالب ",{"$f":"IF(M254<=$N$3,INDEX(ورقة1!$M:$M,$N$6+M254-1),\"\")","v":""},null,null,null,"الصف",{"$f":"$K$2","v":"الرابع 2"},null,null,null,null,null,29]
[null,"درجات شهر ",null,null,{"$f":"$K$3","v":"أكتوبر"}]
[null,"لغة عربية",{"$f":"IF(M254<=$N$3,INDEX(ورقة1!$A:$AW,$N$6+M254-1,$N$9),\"\")","v":""}]
[]
[null,"رياضيات",{"$f":"IF(M254<=$N$3,INDEX(ورقة1!$A:$AW,$N$6+M254-1,$N$9+1),\"\")","v":""}]
[]
[null,"  لغة إنجليزية ",{"$f":"IF(M254<=$N$3,INDEX(ورقة1!$A:$AW,$N$6+M254-1,$N$9+2),\"\")","v":""}]
[]
[null,null,null,null,null,null,null,null,null,null,null,null,null,null,null,null,"يونيو"]
["الطالب ",{"$f":"IF(M263<=$N$3,INDEX(ورقة1!$M:$M,$N$6+M263-1),\"\")","v":""},null,null,null,"الصف",{"$f":"$K$2","v":"الرابع 2"},null,null,null,null,null,30]
[null,"درجات شهر ",null,null,{"$f":"$K$3","v":"أكتوبر"}]
[null,"لغة عربية",{"$f":"IF(M263<=$N$3,INDEX(ورقة1!$A:$AW,$N$6+M263-1,$N$9),\"\")","v":""}]
[]
[null,"رياضيات",{"$f":"IF(M263<=$N$3,INDEX(ورقة1!$A:$AW,$N$6+M263-1,$N$9+1),\"\")","v":""}]
[]
[null,"  لغة إنجليزية ",{"$f":"IF(M263<=$N$3,INDEX(ورقة1!$A:$AW,$N$6+M263-1,$N$9+2),\"\")","v":""}]
[]
[]
["الطالب ",{"$f":"IF(M272<=$N$3,INDEX(ورقة1!$M:$M,$N$6+M272-1),\"\")","v":""},null,null,null,"الصف",{"$f":"$K$2","v":"الرابع 2"},null,null,null,null,null,31]
[null,"درجات شهر ",null,null,{"$f":"$K$3","v":"أكتوبر"}]
[null,"لغة عربية",{"$f":"IF(M272<=$N$3,INDEX(ورقة1!$A:$AW,$N$6+M272-1,$N$9),\"\")","v":""}]
[]
[null,"رياضيات",{"$f":"IF(M272<=$N$3,INDEX(ورقة1!$A:$AW,$N$6+M272-1,$N$9+1),\"\")","v":""}]
[]
[null,"  لغة إنجليزية ",{"$f":"IF(M272<=$N$3,INDEX(ورقة1!$A:$AW,$N$6+M272-1,$N$9+2),\"\")","v":""}]
[]
[null,null,null,null,null,null,null,null,null,null,null,null,null,null,null,"الرابع1","سبتمبر"]
["الطالب ",{"$f":"IF(M281<=$N$3,INDEX(ورقة1!$M:$M,$N$6+M281-1),\"\")","v":""},null,null,null,"الصف",{"$f":"$K$2","v":"الرابع 2"},null,null,null,null,null,32,null,null,"الرابع2","أكتوبر"]
[null,"درجات شهر ",null,null,{"$f":"$K$3","v":"أكتوبر"},null,null,null,null,null,null,null,null,null,null,"الرابع3","نوفمبر"]
[null,"لغة عربية",{"$f":"IF(M281<=$N$3,INDEX(ورقة1!$A:$AW,$N$6+M281-1,$N$9),\"\")","v":""},null,null,null,null,null,null,null,null,null,null,null,null,"الرابع4","ديسمبر"]
[null,null,null,null,null,null,null,null,null,null,null,null,null,null,null,"الرابع5","يناير"]
[null,"رياضيات",{"$f":"IF(M281<=$N$3,INDEX(ورقة1!$A:$AW,$N$6+M281-1,$N$9+1),\"\")","v":""},null,null,null,null,null,null,null,null,null,null,null,null,"الرابع6","فبراير"]
[null,null,null,null,null,null,null,null,null,null,null,null,null,null,null,"الرابع7","مارس"]
[null,"  لغة إنجليزية ",{"$f":"IF(M281<=$N$3,INDEX(ورقة1!$A:$AW,$N$6+M281-1,$N$9+2),\"\")","v":""},null,null,null,null,null,null,null,null,null,null,null,null,"الرابع8","أبريل"]
[null,null,null,null,null,null,null,null,null,null,null,null,null,null,null,null,"مايو"]
[null,null,null,null,null,null,null,null,null,null,null,null,null,null,null,null,"يونيو"]
["الطالب ",{"$f":"IF(M290<=$N$3,INDEX(ورقة1!$M:$M,$N$6+M290-1),\"\")","v":""},null,null,null,"الصف",{"$f":"$K$2","v":"الرابع 2"},null,null,null,null,null,33]
[null,"درجات شهر ",null,null,{"$f":"$K$3","v":"أكتوبر"}]
[null,"لغة عربية",{"$f":"IF(M290<=$N$3,INDEX(ورقة1!$A:$AW,$N$6+M290-1,$N$9),\"\")","v":""}]
[]
[null,"رياضيات",{"$f":"IF(M290<=$N$3,INDEX(ورقة1!$A:$AW,$N$6+M290-1,$N$9+1),\"\")","v":""}]
[]
[null,"  لغة إنجليزية ",{"$f":"IF(M290<=$N$3,INDEX(ورقة1!$A:$AW,$N$6+M290-1,$N$9+2),\"\")","v":""}]
[]
[]
["الطالب ",{"$f":"IF(M299<=$N$3,INDEX(ورقة1!$M:$M,$N$6+M299-1),\"\")","v":""},null,null,null,"الصف",{"$f":"$K$2","v":"الرابع 2"},null,null,null,null,null,34]
[null,"درجات شهر ",null,null,{"$f":"$K$3","v":"أكتوبر"}]
[null,"لغة عربية",{"$f":"IF(M299<=$N$3,INDEX(ورقة1!$A:$AW,$N$6+M299-1,$N$9),\"\")","v":""}]
[]
[null,"رياضيات",{"$f":"IF(M299<=$N$3,INDEX(ورقة1!$A:$AW,$N$6+M299-1,$N$9+1),\"\")","v":""}]
[]
[null,"  لغة إنجليزية ",{"$f":"IF(M299<=$N$3,INDEX(ورقة1!$A:$AW,$N$6+M299-1,$N$9+2),\"\")","v":""}]
[]
[null,null,null,null,null,null,null,null,null,null,null,null,null,null,null,null,"يونيو"]
["الطالب ",{"$f":"IF(M308<=$N$3,INDEX(ورقة1!$M:$M,$N$6+M308-1),\"\")","v":""},null,null,null,"الصف",{"$f":"$K$2","v":"الرابع 2"},null,null,null,null,null,35]
[null,"درجات شهر ",null,null,{"$f":"$K$3","v":"أكتوبر"}]
[null,"لغة عربية",{"$f":"IF(M308<=$N$3,INDEX(ورقة1!$A:$AW,$N$6+M308-1,$N$9),\"\")","v":""}]
[]
[null,"رياضيات",{"$f":"IF(M308<=$N$3,INDEX(ورقة1!$A:$AW,$N$6+M308-1,$N$9+1),\"\")","v":""}]
[]
[null,"  لغة إنجليزية ",{"$f":"IF(M308<=$N$3,INDEX(ورقة1!$A:$AW,$N$6+M308-1,$N$9+2),\"\")","v":""}]
[]
[]
["الطالب ",{"$f":"IF(M317<=$N$3,INDEX(ورقة1!$M:$M,$N$6+M317-1),\"\")","v":""},null,null,null,"الصف",{"$f":"$K$2","v":"الرابع 2"},null,null,null,null,null,36]
[null,"درجات شهر ",null,null,{"$f":"$K$3","v":"أكتوبر"}]
[null,"لغة عربية",{"$f":"IF(M317<=$N$3,INDEX(ورقة1!$A:$AW,$N$6+M317-1,$N$9),\"\")","v":""}]
[]
[null,"رياضيات",{"$f":"IF(M317<=$N$3,INDEX(ورقة1!$A:$AW,$N$6+M317-1,$N$9+1),\"\")","v":""}]
[]
[null,"  لغة إنجليزية ",{"$f":"IF(M317<=$N$3,INDEX(ورقة1!$A:$AW,$N$6+M317-1,$N$9+2),\"\")","v":""}]
[]
[null,null,null,null,null,null,null,null,null,null,null,null,null,null,null,"الرابع1","سبتمبر"]
["الطالب ",{"$f":"IF(M326<=$N$3,INDEX(ورقة1!$M:$M,$N$6+M326-1),\"\")","v":""},null,null,null,"الصف",{"$f":"$K$2","v":"الرابع 2"},null,null,null,null,null,37,null,null,"الرابع2","أكتوبر"]
[null,"درجات شهر ",null,null,{"$f":"$K$3","v":"أكتوبر"},null,null,null,null,null,null,null,null,null,null,"الرابع3","نوفمبر"]
[null,"لغة عربية",{"$f":"IF(M326<=$N$3,INDEX(ورقة1!$A:$AW,$N$6+M326-1,$N$9),\"\")","v":""},null,null,null,null,null,null,null,null,null,null,null,null,"الرابع4","ديسمبر"]
[null,null,null,null,null,null,null,null,null,null,null,null,null,null,null,"الرابع5","يناير"]
[null,"رياضيات",{"$f":"IF(M326<=$N$3,INDEX(ورقة1!$A:$AW,$N$6+M326-1,$N$9+1),\"\")","v":""},null,null,null,null,null,null,null,null,null,null,null,null,"الرابع6","فبراير"]
[null,null,null,null,null,null,null,null,null,null,null,null,null,null,null,"الرابع7","مارس"]
[null,"  لغة إنجليزية ",{"$f":"IF(M326<=$N$3,INDEX(ورقة1!$A:$AW,$N$6+M326-1,$N$9+2),\"\")","v":""},null,null,null,null,null,null,null,null,null,null,null,null,"الرابع8","أبريل"]
[null,null,null,null,null,null,null,null,null,null,null,null,null,null,null,null,"مايو"]
[null,null,null,null,null,null,null,null,null,null,null,null,null,null,null,null,"يونيو"]
["الطالب ",{"$f":"IF(M335<=$N$3,INDEX(ورقة1!$M:$M,$N$6+M335-1),\"\")","v":""},null,null,null,"الصف",{"$f":"$K$2","v":"الرابع 2"},null,null,null,null,null,38]
[null,"درجات شهر ",null,null,{"$f":"$K$3","v":"أكتوبر"}]
[null,"لغة عربية",{"$f":"IF(M335<=$N$3,INDEX(ورقة1!$A:$AW,$N$6+M335-1,$N$9),\"\")","v":""}]
[]
[null,"رياضيات",{"$f":"IF(M335<=$N$3,INDEX(ورقة1!$A:$AW,$N$6+M335-1,$N$9+1),\"\")","v":""}]
[]
[null,"  لغة إنجليزية ",{"$f":"IF(M335<=$N$3,INDEX(ورقة1!$A:$AW,$N$6+M335-1,$N$9+2),\"\")","v":""}]
[]
[]
["الطالب ",{"$f":"IF(M344<=$N$3,INDEX(ورقة1!$M:$M,$N$6+M344-1),\"\")","v":""},null,null,null,"الصف",{"$f":"$K$2","v":"الرابع 2"},null,null,null,null,null,39]
[null,"درجات شهر ",null,null,{"$f":"$K$3","v":"أكتوبر"}]
[null,"لغة عربية",{"$f":"IF(M344<=$N$3,INDEX(ورقة1!$A:$AW,$N$6+M344-1,$N$9),\"\")","v":""}]
[]
[null,"رياضيات",{"$f":"IF(M344<=$N$3,INDEX(ورقة1!$A:$AW,$N$6+M344-1,$N$9+1),\"\")","v":""}]
[]
[null,"  لغة إنجليزية ",{"$f":"IF(M344<=$N$3,INDEX(ورقة1!$A:$AW,$N$6+M344-1,$N$9+2),\"\")","v":""}]
[]
[null,null,null,null,null,null,null,null,null,null,null,null,null,null,null,null,"يونيو"]
["الطالب ",{"$f":"IF(M353<=$N$3,INDEX(ورقة1!$M:$M,$N$6+M353-1),\"\")","v":""},null,null,null,"الصف",{"$f":"$K$2","v":"الرابع 2"},null,null,null,null,null,40]
[null,"درجات شهر ",null,null,{"$f":"$K$3","v":"أكتوبر"}]
[null,"لغة عربية",{"$f":"IF(M353<=$N$3,INDEX(ورقة1!$A:$AW,$N$6+M353-1,$N$9),\"\")","v":""}]
[]
[null,"رياضيات",{"$f":"IF(M353<=$N$3,INDEX(ورقة1!$A:$AW,$N$6+M353-1,$N$9+1),\"\")","v":""}]
[]
[null,"  لغة إنجليزية ",{"$f":"IF(M353<=$N$3,INDEX(ورقة1!$A:$AW,$N$6+M353-1,$N$9+2),\"\")","v":""}]
[]
[]
["الطالب ",{"$f":"IF(M362<=$N$3,INDEX(ورقة1!$M:$M,$N$6+M362-1),\"\")","v":""},null,null,null,"الصف",{"$f":"$K$2","v":"الرابع 2"},null,null,null,null,null,41]
[null,"درجات شهر ",null,null,{"$f":"$K$3","v":"أكتوبر"}]
[null,"لغة عربية",{"$f":"IF(M362<=$N$3,INDEX(ورقة1!$A:$AW,$N$6+M362-1,$N$9),\"\")","v":""}]
[]
[null,"رياضيات",{"$f":"IF(M362<=$N$3,INDEX(ورقة1!$A:$AW,$N$6+M362-1,$N$9+1),\"\")","v":""}]
[]
[null,"  لغة إنجليزية ",{"$f":"IF(M362<=$N$3,INDEX(ورقة1!$A:$AW,$N$6+M362-1,$N$9+2),\"\")","v":""}]
[]
[]
["الطالب ",{"$f":"IF(M371<=$N$3,INDEX(ورقة1!$M:$M,$N$6+M371-1),\"\")","v":""},null,null,null,"الصف",{"$f":"$K$2","v":"الرابع 2"},null,null,null,null,null,42]
[null,"درجات شهر ",null,null,{"$f":"$K$3","v":"أكتوبر"}]
[null,"لغة عربية",{"$f":"IF(M371<=$N$3,INDEX(ورقة1!$A:$AW,$N$6+M371-1,$N$9),\"\")","v":""}]
[]
[null,"رياضيات",{"$f":"IF(M371<=$N$3,INDEX(ورقة1!$A:$AW,$N$6+M371-1,$N$9+1),\"\")","v":""}]
[]
[null,"  لغة إنجليزية ",{"$f":"IF(M371<=$N$3,INDEX(ورقة1!$A:$AW,$N$6+M371-1,$N$9+2),\"\")","v":""}]
[]
[]
["الطالب ",{"$f":"IF(M380<=$N$3,INDEX(ورقة1!$M:$M,$N$6+M380-1),\"\")","v":""},null,null,null,"الصف",{"$f":"$K$2","v":"الرابع 2"},null,null,null,null,null,43]
[null,"درجات شهر ",null,null,{"$f":"$K$3","v":"أكتوبر"}]
[null,"لغة عربية",{"$f":"IF(M380<=$N$3,INDEX(ورقة1!$A:$AW,$N$6+M380-1,$N$9),\"\")","v":""}]
[]
[null,"رياضيات",{"$f":"IF(M380<=$N$3,INDEX(ورقة1!$A:$AW,$N$6+M380-1,$N$9+1),\"\")","v":""}]
[]
[null,"  لغة إنجليزية ",{"$f":"IF(M380<=$N$3,INDEX(ورقة1!$A:$AW,$N$6+M380-1,$N$9+2),\"\")","v":""}]
[]
[]
["الطالب ",{"$f":"IF(M389<=$N$3,INDEX(ورقة1!$M:$M,$N$6+M389-1),\"\")","v":""},null,null,null,"الصف",{"$f":"$K$2","v":"الرابع 2"},null,null,null,null,null,44]
[null,"درجات شهر ",null,null,{"$f":"$K$3","v":"أكتوبر"}]
[null,"لغة عربية",{"$f":"IF(M389<=$N$3,INDEX(ورقة1!$A:$AW,$N$6+M389-1,$N$9),\"\")","v":""}]
[]
[null,"رياضيات",{"$f":"IF(M389<=$N$3,INDEX(ورقة1!$A:$AW,$N$6+M389-1,$N$9+1),\"\")","v":""}]
[]
[null,"  لغة إنجليزية ",{"$f":"IF(M389<=$N$3,INDEX(ورقة1!$A:$AW,$N$6+M389-1,$N$9+2),\"\")","v":""}]
[]
[]
["الطالب ",{"$f":"IF(M398<=$N$3,INDEX(ورقة1!$M:$M,$N$6+M398-1),\"\")","v":""},null,null,null,"الصف",{"$f":"$K$2","v":"الرابع 2"},null,null,null,null,null,45]
[null,"درجات شهر ",null,null,{"$f":"$K$3","v":"أكتوبر"}]
[null,"لغة عربية",{"$f":"IF(M398<=$N$3,INDEX(ورقة1!$A:$AW,$N$6+M398-1,$N$9),\"\")","v":""}]
[]
[null,"رياضيات",{"$f":"IF(M398<=$N$3,INDEX(ورقة1!$A:$AW,$N$6+M398-1,$N$9+1),\"\")","v":""}]
[]
[null,"  لغة إنجليزية ",{"$f":"IF(M398<=$N$3,INDEX(ورقة1!$A:$AW,$N$6+M398-1,$N$9+2),\"\")","v":""}]
[]
[]
["الطالب ",{"$f":"IF(M407<=$N$3,INDEX(ورقة1!$M:$M,$N$6+M407-1),\"\")","v":""},null,null,null,"الصف",{"$f":"$K$2","v":"الرابع 2"},null,null,null,null,null,46]
[null,"درجات شهر ",null,null,{"$f":"$K$3","v":"أكتوبر"}]
[null,"لغة عربية",{"$f":"IF(M407<=$N$3,INDEX(ورقة1!$A:$AW,$N$6+M407-1,$N$9),\"\")","v":""}]
[]
[null,"رياضيات",{"$f":"IF(M407<=$N$3,INDEX(ورقة1!$A:$AW,$N$6+M407-1,$N$9+1),\"\")","v":""}]
[]
[null,"  لغة إنجليزية ",{"$f":"IF(M407<=$N$3,INDEX(ورقة1!$A:$AW,$N$6+M407-1,$N$9+2),\"\")","v":""}]
[]
[]
["الطالب ",{"$f":"IF(M416<=$N$3,INDEX(ورقة1!$M:$M,$N$6+M416-1),\"\")","v":""},null,null,null,"الصف",{"$f":"$K$2","v":"الرابع 2"},null,null,null,null,null,47]
[null,"درجات شهر ",null,null,{"$f":"$K$3","v":"أكتوبر"}]
[null,"لغة عربية",{"$f":"IF(M416<=$N$3,INDEX(ورقة1!$A:$AW,$N$6+M416-1,$N$9),\"\")","v":""}]
[]
[null,"رياضيات",{"$f":"IF(M416<=$N$3,INDEX(ورقة1!$A:$AW,$N$6+M416-1,$N$9+1),\"\")","v":""}]
[]
[null,"  لغة إنجليزية ",{"$f":"IF(M416<=$N$3,INDEX(ورقة1!$A:$AW,$N$6+M416-1,$N$9+2),\"\")","v":""}]
[]
[]
["الطالب ",{"$f":"IF(M425<=$N$3,INDEX(ورقة1!$M:$M,$N$6+M425-1),\"\")","v":""},null,null,null,"الصف",{"$f":"$K$2","v":"الرابع 2"},null,null,null,null,null,48]
[null,"درجات شهر ",null,null,{"$f":"$K$3","v":"أكتوبر"}]
[null,"لغة عربية",{"$f":"IF(M425<=$N$3,INDEX(ورقة1!$A:$AW,$N$6+M425-1,$N$9),\"\")","v":""}]
[]
[null,"رياضيات",{"$f":"IF(M425<=$N$3,INDEX(ورقة1!$A:$AW,$N$6+M425-1,$N$9+1),\"\")","v":""}]
[]
[null,"  لغة إنجليزية ",{"$f":"IF(M425<=$N$3,INDEX(ورقة1!$A:$AW,$N$6+M425-1,$N$9+2),\"\")","v":""}]
[]
[]
["الطالب ",{"$f":"IF(M434<=$N$3,INDEX(ورقة1!$M:$M,$N$6+M434-1),\"\")","v":""},null,null,null,"الصف",{"$f":"$K$2","v":"الرابع 2"},null,null,null,null,null,49]
[null,"درجات شهر ",null,null,{"$f":"$K$3","v":"أكتوبر"}]
[null,"لغة عربية",{"$f":"IF(M434<=$N$3,INDEX(ورقة1!$A:$AW,$N$6+M434-1,$N$9),\"\")","v":""}]
[]
[null,"رياضيات",{"$f":"IF(M434<=$N$3,INDEX(ورقة1!$A:$AW,$N$6+M434-1,$N$9+1),\"\")","v":""}]
[]
[null,"  لغة إنجليزية ",{"$f":"IF(M434<=$N$3,INDEX(ورقة1!$A:$AW,$N$6+M434-1,$N$9+2),\"\")","v":""}]
[]
[]
["الطالب ",{"$f":"IF(M443<=$N$3,INDEX(ورقة1!$M:$M,$N$6+M443-1),\"\")","v":""},null,null,null,"الصف",{"$f":"$K$2","v":"الرابع 2"},null,null,null,null,null,50]
[null,"درجات شهر ",null,null,{"$f":"$K$3","v":"أكتوبر"}]
[null,"لغة عربية",{"$f":"IF(M443<=$N$3,INDEX(ورقة1!$A:$AW,$N$6+M443-1,$N$9),\"\")","v":""}]
[]
[null,"رياضيات",{"$f":"IF(M443<=$N$3,INDEX(ورقة1!$A:$AW,$N$6+M443-1,$N$9+1),\"\")","v":""}]
[]
[null,"  لغة إنجليزية ",{"$f":"IF(M443<=$N$3,INDEX(ورقة1!$A:$AW,$N$6+M443-1,$N$9+2),\"\")","v":""}]
[]
[]
["الطالب ",{"$f":"IF(M452<=$N$3,INDEX(ورقة1!$M:$M,$N$6+M452-1),\"\")","v":""},null,null,null,"الصف",{"$f":"$K$2","v":"الرابع 2"},null,null,null,null,null,51]
[null,"درجات شهر ",null,null,{"$f":"$K$3","v":"أكتوبر"}]
[null,"لغة عربية",{"$f":"IF(M452<=$N$3,INDEX(ورقة1!$A:$AW,$N$6+M452-1,$N$9),\"\")","v":""}]
[]
[null,"رياضيات",{"$f":"IF(M452<=$N$3,INDEX(ورقة1!$A:$AW,$N$6+M452-1,$N$9+1),\"\")","v":""}]
[]
[null,"  لغة إنجليزية ",{"$f":"IF(M452<=$N$3,INDEX(ورقة1!$A:$AW,$N$6+M452-1,$N$9+2),\"\")","v":""}]
[]
[]
["الطالب ",{"$f":"IF(M461<=$N$3,INDEX(ورقة1!$M:$M,$N$6+M461-1),\"\")","v":""},null,null,null,"الصف",{"$f":"$K$2","v":"الرابع 2"},null,null,null,null,null,52]
[null,"درجات شهر ",null,null,{"$f":"$K$3","v":"أكتوبر"}]
[null,"لغة عربية",{"$f":"IF(M461<=$N$3,INDEX(ورقة1!$A:$AW,$N$6+M461-1,$N$9),\"\")","v":""}]
[]
[null,"رياضيات",{"$f":"IF(M461<=$N$3,INDEX(ورقة1!$A:$AW,$N$6+M461-1,$N$9+1),\"\")","v":""}]
[]
[null,"  لغة إنجليزية ",{"$f":"IF(M461<=$N$3,INDEX(ورقة1!$A:$AW,$N$6+M461-1,$N$9+2),\"\")","v":""}]

{"sheet":"ورقة1","index":1,"n_rows":144,"n_cols":49,"rows_kept":144,"cut":false,"hidden":false,"merged":[]}
[]
[]
[null,null,null,null,null,null,null,null,null,null,null,null,null,"سبتمبر",null,null,null,null,null,"اكتوبر",null,null,null,null,"نوفمبر",null,null,null,null,"ديسمبر",null,null,null,null,null,"يناير",null,null,null,null,"فبراير",null,null,null,null,null,"مارس"]
[null,null,null,null,null,null,null,null,null,null,"م","الصف ","الاســــــــــــــم","لغة عربية","رياضيات","  لغة إنجليزية ",null,null,null,"لغة عربية","رياضيات","  لغة إنجليزية ",null,null,"لغة عربية","رياضيات","  لغة إنجليزية ",null,null,"لغة عربية","رياضيات","  لغة إنجليزية ",null,null,null,"لغة عربية","رياضيات","  لغة إنجليزية ",null,null,"لغة عربية","رياضيات","  لغة إنجليزية ",null,null,null,"لغة عربية","رياضيات","  لغة إنجليزية "]
[null,null,null,null,null,null,null,null,null,null,null,"الرابع 1","ابراهيم  الحواراني",30,30,30,null,null,null,30,30,30,null,null,30,30,30]
[null,null,null,null,null,null,null,null,null,null,1,"الرابع 1","ابراهيم السيد ",29,25,29,null,null,null,28,30,25,null,null,28,30,25]
[null,null,null,null,null,null,null,null,null,null,2,"الرابع 1","احمد السيد عباس مصلحى",19,21,26,null,null,null,28,30,21,null,null,28,30,21]
[null,null,null,null,null,null,null,null,null,null,3,"الرابع 1","أحمد أيمن السعيد المهدى العليمى",29,30,30,null,null,null,30,30,30,null,null,30,30,30]
[null,null,null,null,null,null,null,null,null,null,4,"الرابع 1","احمد حسين عبدالله مرسى المرادى",19,25,30,null,null,null,29,30,25,null,null,29,30,25]
[null,null,null,null,null,null,null,null,null,null,5,"الرابع 1","أحمد عادل محمد جلالة",28,28,29,null,null,null,30,30,28,null,null,30,30,28]
[null,null,null,null,null,null,null,null,null,null,6,"الرابع 1","أحمد عبد الرازق محمد الهادى عبد الرازق خليل",26,30,29,null,null,null,30,30,30,null,null,30,30,30]
[null,null,null,null,null,null,null,null,null,null,7,"الرابع 1","أحمد عبد المنعم محمد امام المرادى",27,30,28,null,null,null,30,30,30,null,null,30,30,30]
[null,null,null,null,null,null,null,null,null,null,8,"الرابع 1","أحمد كرم أحمد محمد عبد الله",19,25,24,null,null,null,19,28,25,null,null,19,28,25]
[null,null,null,null,null,null,null,null,null,null,9,"الرابع 1","احمد محمد حسن على الدهين",27,26,27,null,null,null,29,30,26,null,null,29,30,26]
[null,null,null,null,null,null,null,null,null,null,10,"الرابع 1","انس محروس عبد الرازق زايد",24,23,23,null,null,null,30,30,23,null,null,30,30,23]
[null,null,null,null,null,null,null,null,null,null,11,"الرابع 1","اياد احمد جبر احمد جبر",23,27,30,null,null,null,30,30,27,null,null,30,30,27]
[null,null,null,null,null,null,null,null,null,null,12,"الرابع 1","باسم السيد عبد المعطى السيد الشربينى",20,25,19,null,null,null,26,28,25,null,null,26,28,25]
[null,null,null,null,null,null,null,null,null,null,13,"الرابع 1","زياد عاطف محمد عبدالمنعم",29,28,30,null,null,null,29,30,28,null,null,29,30,28]
[null,null,null,null,null,null,null,null,null,null,14,"الرابع 1","زياد عبد المنعم السيد محمد زايد",29,30,30,null,null,null,30,29,30,null,null,30,29,30]
[null,null,null,null,null,null,null,null,null,null,15,"الرابع 1","زياد هانى محمد الهادى عبد الرازق خليل",30,29,28,null,null,null,30,30,29,null,null,30,30,29]
[null,null,null,null,null,null,null,null,null,null,16,"الرابع 1","عبد الرحمن أسامة محمود السيد داود",28,28,29,null,null,null,30,30,28,null,null,30,30,28]
[null,null,null,null,null,null,null,null,null,null,17,"الرابع 1","عبد الرحمن وجيه عبد الحليم عنتر السيد",24,15,29,null,null,null,27,28,15,null,null,27,28,15]
[null,null,null,null,null,null,null,null,null,null,18,"الرابع 1","عبد السميع خالد عبد السميع بكر",25,19,25,null,null,null,29,28,19,null,null,29,28,19]
[null,null,null,null,null,null,null,null,null,null,19,"الرابع 1","عبد العزيز السيد عبد العزيز محمد إبراهيم",30,26,29,null,null,null,29,30,26,null,null,29,30,26]
[null,null,null,null,null,null,null,null,null,null,20,"الرابع 1","عبدالرحمن محمد يوسف عبدالله المرادى",29,22,30,null,null,null,29,30,22,null,null,29,30,22]
[null,null,null,null,null,null,null,null,null,null,21,"الرابع 1","على محمد على موسى حسين",26,25,28,null,null,null,28,29,25,null,null,28,29,25]
[null,null,null,null,null,null,null,null,null,null,22,"الرابع 1","عمار سامح عبد الفتاح العونى",29,27,29,null,null,null,29,29,27,null,null,29,29,27]
[null,null,null,null,null,null,null,null,null,null,23,"الرابع 1","عمار محمد عفيفي محمد عيسي",21,24,28,null,null,null,25,29,24,null,null,25,29,24]
[null,null,null,null,null,null,null,null,null,null,24,"الرابع 1","عمر ايهاب محمود محمد يوسف",30,29,30,null,null,null,30,30,29,null,null,30,30,29]
[null,null,null,null,null,null,null,null,null,null,25,"الرابع 1","عمر عفيفى عفيفى قطب حسن",25,27,27,null,null,null,30,30,27,null,null,30,30,27]
[null,null,null,null,null,null,null,null,null,null,26,"الرابع 1","عمر محمد سمير عطية عفيفى الخولى",28,26,29,null,null,null,28,31,26,null,null,28,31,26]
[null,null,null,null,null,null,null,null,null,null,27,"الرابع 1","عمير محمد فهمى احمد الحنفى",25,22,28,null,null,null,29,29,22,null,null,29,29,22]
[null,null,null,null,null,null,null,null,null,null,28,"الرابع 1","فارس مجاهد على الليثى",29,28,29,null,null,null,29,30,28,null,null,29,30,28]
[null,null,null,null,null,null,null,null,null,null,29,"الرابع 1","كريم أحمد عبد الرحمن السيد يوسف",29,26,30,null,null,null,25,29,26,null,null,25,29,26]
[null,null,null,null,null,null,null,null,null,null,30,"الرابع 1","كريم شوقى السيد محمد محمد",23,20,22,null,null,null,27,30,20,null,null,27,30,20]
[null,null,null,null,null,null,null,null,null,null,31,"الرابع 1","ماجد محمد السيد بكر",30,28,29,null,null,null,29,30,28,null,null,29,30,28]
[null,null,null,null,null,null,null,null,null,null,32,"الرابع 1","مازن محمد  حسين عبدالوهاب",29,30,27,null,null,null,30,28,30,null,null,30,28,30]
[]
[]
[]
[]
[]
[null,null,null,null,null,null,null,null,null,null,1,"الرابع 2","محمد أسامه عبد العاطى عبد العزيز موسى",29,30,30,null,null,null,30,30,30,null,null,30,30,30]
[null,null,null,null,null,null,null,null,null,null,2,"الرابع 2","محمد السيد البيومى السيد",24,21,27,null,null,null,27,27,21,null,null,27,27,21]
[null,null,null,null,null,null,null,null,null,null,3,"الرابع 2","محمد ايمن ابراهيم امام سليمان",26,28,30,null,null,null,29,30,28,null,null,29,30,28]
[null,null,null,null,null,null,null,null,null,null,4,"الرابع 2","محمد طارق محمد السيد أبو الفتوح",21,23,28,null,null,null,28,30,23,null,null,28,30,23]
[null,null,null,null,null,null,null,null,null,null,5,"الرابع 2","محمد عادل نبيل فهيم",25,24,26,null,null,null,28,30,24,null,null,28,30,24]
[null,null,null,null,null,null,null,null,null,null,6,"الرابع 2","محمد عبد المنعم عبد الرازق عبد المنعم محمد",19,30,24,null,null,null,28,28,30,null,null,28,28,30]
[null,null,null,null,null,null,null,null,null,null,7,"الرابع 2","محمد علي محمد علي حسن",30,28,30,null,null,null,29,30,28,null,null,29,30,28]
[null,null,null,null,null,null,null,null,null,null,8,"الرابع 2","محمد عماد رمضان محمد عبد الحميد",30,27,30,null,null,null,29,30,27,null,null,29,30,27]
[null,null,null,null,null,null,null,null,null,null,9,"الرابع 2","محمد نبيل عبد العزيز بكر",28,22,29,null,null,null,29,30,22,null,null,29,30,22]
[null,null,null,null,null,null,null,null,null,null,10,"الرابع 2","محمود أحمد ابراهيم متولى السيد",26,30,24,null,null,null,28,26,30,null,null,28,26,30]
[null,null,null,null,null,null,null,null,null,null,11,"الرابع 2","محمود أحمد محروس السيد يكر",29,30,30,null,null,null,29,30,30,null,null,29,30,30]
[null,null,null,null,null,null,null,null,null,null,12,"الرابع 2","محمود زايد عبد المنعم زايد",22,16,24,null,null,null,28,27,16,null,null,28,27,16]
[null,null,null,null,null,null,null,null,null,null,13,"الرابع 2","محمود شوقي الحسيني عثمان",19,26,26,null,null,null,28,28,26,null,null,28,28,26]
[null,null,null,null,null,null,null,null,null,null,14,"الرابع 2","محمود عادل رزق عبد الهادى عطيه",29,29,30,null,null,null,30,30,29,null,null,30,30,29]
[null,null,null,null,null,null,null,null,null,null,15,"الرابع 2","محمود فوزى محمود سعيد سيد احمد",28,29,29,null,null,null,29,30,29,null,null,29,30,29]
[null,null,null,null,null,null,null,null,null,null,16,"الرابع 2","محمود وائل محمود حماد",27,29,27,null,null,null,29,30,29,null,null,29,30,29]
[null,null,null,null,null,null,null,null,null,null,17,"الرابع 2","مروان محمود على الليثى",26,29,28,null,null,null,29,29,29,null,null,29,29,29]
[null,null,null,null,null,null,null,null,null,null,18,"الرابع 2","يوسف احمد فايز عبدالمولى فرج",27,28,26,null,null,null,29,30,28,null,null,29,30,28]
[null,null,null,null,null,null,null,null,null,null,19,"الرابع 2","يوسف الخضرى محمد الخضرى العليمى",27,30,30,null,null,null,30,30,30,null,null,30,30,30]
[null,null,null,null,null,null,null,null,null,null,20,"الرابع 2","يوسف أمير عبدالرازق يوسف عبد الله",25,22,28,null,null,null,29,29,22,null,null,29,29,22]
[null,null,null,null,null,null,null,null,null,null,21,"الرابع 2","يوسف محمد عبد الراضى حسنين أحمد",20,21,28,null,null,null,28,29,21,null,null,28,29,21]
[null,null,null,null,null,null,null,null,null,null,22,"الرابع 2","أمنية عبد الحفيظ عبد الرازق مصطفى",29,30,29,null,null,null,30,30,30,null,null,30,30,30]
[null,null,null,null,null,null,null,null,null,null,23,"الرابع 2","أمنية عبد المنعم عبد المنعم زايد",30,30,30,null,null,null,30,30,30,null,null,30,30,30]
[null,null,null,null,null,null,null,null,null,null,24,"الرابع 2","انجى ايهاب يحيي عبدالحى على",30,29,30,null,null,null,29,30,29,null,null,29,30,29]
[null,null,null,null,null,null,null,null,null,null,25,"الرابع 2","أية ربيع عبد الحفيظ حسن علي",29,28,30,null,null,null,28,30,28,null,null,28,30,28]
[]
[]
[]
[]
[]
[]
[]
[null,null,null,null,null,null,null,null,null,null,1,"الرابع 3","ايمان محمد جمال عبد الحليم المرادى",30,29,30,null,null,null,28,30,29,null,null,28,30,29]
[null,null,null,null,null,null,null,null,null,null,2,"الرابع 3","بسملة اشرف عبد الحليم عنتر عفيفى",21,22,30,null,null,null,28,27,22,null,null,28,27,22]
[null,null,null,null,null,null,null,null,null,null,3,"الرابع 3","تيسير ابراهيم عبدالعليم بيومى عابدين",25,24,30,null,null,null,29,29,24,null,null,29,29,24]
[null,null,null,null,null,null,null,null,null,null,4,"الرابع 3","جنه جمال امام محمد المرادى",28,30,29,null,null,null,29,29,30,null,null,29,29,30]
[null,null,null,null,null,null,null,null,null,null,5,"الرابع 3","جنى أحمد عبد العزيزمحمد عبد الغنى",30,29,30,null,null,null,30,30,29,null,null,30,30,29]
[null,null,null,null,null,null,null,null,null,null,6,"الرابع 3","جنى محمد حسن بازالشريف",30,30,30,null,null,null,29,30,30,null,null,29,30,30]
[null,null,null,null,null,null,null,null,null,null,7,"الرابع 3","جنى محمود جمال جوده على",30,30,30,null,null,null,30,30,30,null,null,30,30,30]
[null,null,null,null,null,null,null,null,null,null,8,"الرابع 3","جني الخضري وهبه الخضري",30,29,30,null,null,null,29,30,29,null,null,29,30,29]
[null,null,null,null,null,null,null,null,null,null,9,"الرابع 3","حبيبه محمد عبدالمنعم السيد عابدين",30,29,30,null,null,null,29,30,29,null,null,29,30,29]
[null,null,null,null,null,null,null,null,null,null,10,"الرابع 3","حبيبه هاني كرم عبد الرشيد عقل",30,29,30,null,null,null,29,30,29,null,null,29,30,29]
[null,null,null,null,null,null,null,null,null,null,11,"الرابع 3","حنان عبد الحميد إبراهيم على عبد العزيزبحر",30,25,30,null,null,null,29,30,25,null,null,29,30,25]
[null,null,null,null,null,null,null,null,null,null,12,"الرابع 3","حنين السيد البيومى السيد",28,27,28,null,null,null,29,30,27,null,null,29,30,27]
[null,null,null,null,null,null,null,null,null,null,13,"الرابع 3","دنيا وليد جمال السيد النجار",28,30,29,null,null,null,27,30,30,null,null,27,30,30]
[null,null,null,null,null,null,null,null,null,null,14,"الرابع 3","رحمة صلاح الدين احمد عبد الوهاب حماد",26,25,26,null,null,null,30,28,25,null,null,30,28,25]
[null,null,null,null,null,null,null,null,null,null,15,"الرابع 3","رحيل سعيد مسعد السعيد سيد احمد",30,21,24,null,null,null,28,25,21,null,null,28,25,21]
[null,null,null,null,null,null,null,null,null,null,16,"الرابع 3","رزان محمد عبد العاطى عبد العزيز محمد",30,28,30,null,null,null,29,30,28,null,null,29,30,28]
[null,null,null,null,null,null,null,null,null,null,17,"الرابع 3","روان السيد عبدالوهاب عبداللطيف متولى",30,30,30,null,null,null,30,29,30,null,null,30,29,30]
[null,null,null,null,null,null,null,null,null,null,18,"الرابع 3","رويدا احمد صبحى عبد الرازق",30,28,30,null,null,null,30,30,28,null,null,30,30,28]
[null,null,null,null,null,null,null,null,null,null,19,"الرابع 3","سارة ابراهيم محمد فتوح أحمد العونى",30,29,30,null,null,null,29,30,29,null,null,29,30,29]
[null,null,null,null,null,null,null,null,null,null,20,"الرابع 3","سلسبيل صالح عبد الحفيظ المرسى المرادى",26,20,29,null,null,null,29,30,20,null,null,29,30,20]
[null,null,null,null,null,null,null,null,null,null,21,"الرابع 3","سلمى أيمن محمود البحيرى",30,29,30,null,null,null,29,30,29,null,null,29,30,29]
[null,null,null,null,null,null,null,null,null,null,22,"الرابع 3","سما رامى فتحى عبد العزيز عبد الرحمن",26,28,30,null,null,null,29,30,28,null,null,29,30,28]
[null,null,null,null,null,null,null,null,null,null,23,"الرابع 3","شهد أحمد مكاوى أحمد",27,25,30,null,null,null,28,30,25,null,null,28,30,25]
[null,null,null,null,null,null,null,null,null,null,24,"الرابع 3","شهد شوقى محمد حلمى عبد العزيز",29,28,30,null,null,null,29,30,28,null,null,29,30,28]
[null,null,null,null,null,null,null,null,null,null,25,"الرابع 3","شيماء ابراهيم أحمد متولى",28,28,28,null,null,null,27,28,28,null,null,27,28,28]
[null,null,null,null,null,null,null,null,null,null,26,"الرابع 3","صفا يوسف السيد محمد يوسف",29,28,30,null,null,null,29,30,28,null,null,29,30,28]
[null,null,null,null,null,null,null,null,null,null,27,"الرابع 3","صفاء أيمن فتحى أحمد رضوان",28,29,30,null,null,null,28,30,29,null,null,28,30,29]
[null,null,null,null,null,null,null,null,null,null,28,"الرابع 3","فرح حسن عبدالحفيظ حسن اسماعيل",28,29,30,null,null,null,28,30,29,null,null,28,30,29]
[null,null,null,null,null,null,null,null,null,null,29,"الرابع 3","فرح عبد الله عبد المنعم يوسف عبد الله",25,30,30,null,null,null,30,30,30,null,null,30,30,30]
[null,null,null,null,null,null,null,null,null,null,30,"الرابع 3","مريم احمد مأمون السيد زايد",29,29,30,null,null,null,30,30,29,null,null,30,30,29]
[null,null,null,null,null,null,null,null,null,null,31,"الرابع 3","مريم بشير فتحي عبد الكريم يوسف",30,30,30,null,null,null,30,30,30,null,null,30,30,30]
[null,null,null,null,null,null,null,null,null,null,32,"الرابع 3","مريم محمد حسن عبد الحفيظ عابدين",30,29,30,null,null,null,30,30,29,null,null,30,30,29]
[null,null,null,null,null,null,null,null,null,null,33,"الرابع 3","مريم محمد حسين محمد عفيفى",30,29,30,null,null,null,29,30,29,null,null,29,30,29]
[null,null,null,null,null,null,null,null,null,null,34,"الرابع 3","ملك احمد عبدالرازق يوسف",30,29,30,null,null,null,30,30,29,null,null,30,30,29]
[null,null,null,null,null,null,null,null,null,null,35,"الرابع 3","ملك حاتم عبد الله بكر",30,28,30,null,null,null,30,30,28,null,null,30,30,28]
[null,null,null,null,null,null,null,null,null,null,36,"الرابع 3","ملك صالح السيد حسن عطية",19,27,18,null,null,null,18,30,27,null,null,18,30,27]
[null,null,null,null,null,null,null,null,null,null,37,"الرابع 3","ملك محمد على عبد الجواد",28,22,30,null,null,null,26,28,22,null,null,26,28,22]
[null,null,null,null,null,null,null,null,null,null,38,"الرابع 3","ملك مصطفي طه عبد الحميد إبراهيم",28,30,30,null,null,null,29,30,30,null,null,29,30,30]
[null,null,null,null,null,null,null,null,null,null,39,"الرابع 3","منه عصام عبد العال عبد الواحد زايد",30,28,27,null,null,null,30,30,28,null,null,30,30,28]
[null,null,null,null,null,null,null,null,null,null,40,"الرابع 3","منى صبحى السيد السيد خليل",26,26,28,null,null,null,28,29,26,null,null,28,29,26]
[null,null,null,null,null,null,null,null,null,null,41,"الرابع 3","ميار هشام محمود البحيرى",29,26,28,null,null,null,28,29,26,null,null,28,29,26]
[null,null,null,null,null,null,null,null,null,null,42,"الرابع 3","ندى محمد غريب عبد العال امام",30,30,30,null,null,null,30,30,30,null,null,30,30,30]
[null,null,null,null,null,null,null,null,null,null,43,"الرابع 3","نهى عبد الله حسن محمد عبد الله",28,23,28,null,null,null,29,30,23,null,null,29,30,23]
[]
[]
[]
[]
[]
[]
[]
[null,null,null,null,null,null,null,null,null,null,1,"الرابع 4","نور مصطفى عبد الرازق عبد الغنى عمارة",25,24,28,null,null,null,30,30,24,null,null,30,30,24]
[null,null,null,null,null,null,null,null,null,null,2,"الرابع 4","هاجر طارق جلال أحمد السيد",30,30,28,null,null,null,30,30,30,null,null,30,30,30]
[null,null,null,null,null,null,null,null,null,null,3,"الرابع 4","هاجر محمد زكى محمد يوسف",30,30,30,null,null,null,30,30,30,null,null,30,30,30]
[null,null,null,null,null,null,null,null,null,null,4,"الرابع 4","هاجر محمود فتحى عواد فرج",30,30,30,null,null,null,28,30,30,null,null,28,30,30]
[null,null,null,null,null,null,null,null,null,null,5,"الرابع 4","هبه جمال ابراهيم محمد عبد الله",28,28,27,null,null,null,28,30,28,null,null,28,30,28]
[null,null,null,null,null,null,null,null,null,null,6,"الرابع 4","هبه خالد فراج أحمد فراج",24,26,30,null,null,null,25,30,26,null,null,25,30,26]
[null,null,null,null,null,null,null,null,null,null,7,"الرابع 4","هدير هانى عبد الخالق المهدى العليمى",25,22,30,null,null,null,29,30,22,null,null,29,30,22]
[null,null,null,null,null,null,null,null,null,null,8,"الرابع 4","هنا أحمد محمد عبد العليم فرج",30,30,30,null,null,null,30,30,30,null,null,30,30,30]
[null,null,null,null,null,null,null,null,null,null,9,"الرابع 4","ياسمين عبد الكريم عبد الله عبد الكريم يوسف",30,29,28,null,null,null,30,29,29,null,null,30,29,29]
[null,null,null,null,null,null,null,null,null,null,10,"الرابع 4","يمنى عادل على محمد مصطفى",30,29,30,null,null,null,30,30,29,null,null,30,30,29]
[null,null,null,null,null,null,null,null,null,null,11,"الرابع 4","سعيد محمد السعيد محمود",21,25,28,null,null,null,26,30,25,null,null,26,30,25]
[null,null,null,null,null,null,null,null,null,null,12,"الرابع 4","عبد الرحمن عمرو السيد عبد الغفار نوح",20,15,9,null,null,null,30,25,15,null,null,30,25,15]
[null,null,null,null,null,null,null,null,null,null,13,"الرابع 4","عبد الرحمن محمد كمال الصادق فرج",8,24,30,null,null,null,21,26,24,null,null,21,26,24]
[null,null,null,null,null,null,null,null,null,null,14,"الرابع 4","على أشرف عباس سعيد عجور",17,19,11,null,null,null,28,28,19,null,null,28,28,19]
[null,null,null,null,null,null,null,null,null,null,15,"الرابع 4","فارس محمد عبد الله محمد هدهد",11,15,8,null,null,null,20,20,15,null,null,20,20,15]
[null,null,null,null,null,null,null,null,null,null,16,"الرابع 4","فهد محمد عبد الحليم سيد المرادي","غ","غ","غ",null,null,null,"غ","غ","غ",null,null,"غ","غ","غ"]
[null,null,null,null,null,null,null,null,null,null,17,"الرابع 4","محمد ايهاب محمد عبد الغفار البرعي","غ","غ","غ",null,null,null,"غ","غ","غ",null,null,"غ","غ","غ"]
[null,null,null,null,null,null,null,null,null,null,18,"الرابع 4","محمد خالد محمد رشاد الجزار",22,18,10,null,null,null,26,29,18,null,null,26,29,18]
[null,null,null,null,null,null,null,null,null,null,19,"الرابع 4","مصطفى السيد محمود الحسينى",13,14,16,null,null,null,12,19,14,null,null,12,19,14]
[null,null,null,null,null,null,null,null,null,null,20,"الرابع 4","ملك أيمن صبحى حماد",20,20,22,null,null,null,21,25,20,null,null,21,25,20]